[Event "Open NK Rapid 2025"]
[Site "Helmond, Netherlands"]
[Date "2025.05.03"]
[Round "2.19"]
[White "Neuwald, Johannes"]
[Black "Van Roon, Sjoerd"]
[Result "0-1"]
[TimeControl "15+5"]
[WhiteFideId "34683240"]
[BlackFideId "1051075"]
[WhiteElo "1839"]
[BlackElo "2179"]

1. a3 {[%clk 00:15:08]} {[%emt 00:00:02]} e5 {[%clk 00:15:01]} {[%emt
00:00:09]} 2. h3 {[%clk 00:15:12]} {[%emt 00:00:01]} d5 {[%clk 00:15:01]}
{[%emt 00:00:05]} 3. g3 {[%clk 00:15:16]} {[%emt 00:00:01]} Nf6 {[%clk
00:14:53]} {[%emt 00:00:13]} 4. Bg2 {[%clk 00:15:20]} Nc6 {[%clk 00:14:50]}
{[%emt 00:00:08]} 5. d3 {[%clk 00:15:24]} {[%emt 00:00:01]} Bd6 {[%clk
00:14:06]} {[%emt 00:00:49]} 6. e3 {[%clk 00:15:19]} {[%emt 00:00:11]} Be6
{[%clk 00:14:02]} {[%emt 00:00:08]} 7. Ne2 {[%clk 00:15:22]} {[%emt 00:00:03]}
Qd7 {[%clk 00:14:03]} {[%emt 00:00:04]} 8. b4 {[%clk 00:15:18]} {[%emt
00:00:09]} a6 {[%clk 00:13:45]} {[%emt 00:00:23]} 9. Bb2 {[%clk 00:15:20]}
{[%emt 00:00:04]} h5 {[%clk 00:13:26]} {[%emt 00:00:23]} 10. Nd2 {[%clk
00:15:23]} {[%emt 00:00:02]} O-O-O {[%clk 00:12:26]} {[%emt 00:01:05]} 11. Nb3
{[%clk 00:14:31]} {[%emt 00:00:57]} Rhe8 {[%clk 00:12:18]} {[%emt 00:00:13]} 12.
Rc1 {[%clk 00:13:52]} {[%emt 00:00:44]} Kb8 {[%clk 00:11:39]} {[%emt 00:00:43]}
13. d4 {[%clk 00:13:11]} {[%emt 00:00:47]} Ne4 {[%clk 00:09:49]} {[%emt
00:01:55]} 14. Nc5 {[%clk 00:12:05]} {[%emt 00:01:11]} Bxc5 {[%clk 00:09:39]}
{[%emt 00:00:15]} 15. dxc5 {[%clk 00:09:39]} {[%emt 00:02:32]} f5 {[%clk
00:09:17]} {[%emt 00:00:27]} 16. f4 {[%clk 00:07:08]} {[%emt 00:02:35]} Qe7
{[%clk 00:06:42]} {[%emt 00:02:39]} 17. h4 {[%clk 00:04:54]} {[%emt 00:02:20]}
d4 {[%clk 00:06:32]} {[%emt 00:00:16]} 18. exd4 {[%clk 00:04:06]} {[%emt
00:00:53]} Nxd4 {[%clk 00:06:29]} {[%emt 00:00:07]} 19. Bxd4 {[%clk 00:03:21]}
{[%emt 00:00:50]} exd4 {[%clk 00:06:29]} {[%emt 00:00:06]} 20. Qd3 {[%clk
00:02:58]} {[%emt 00:00:28]} Nxg3 {[%clk 00:05:32]} {[%emt 00:01:02]} 21. Qxg3
{[%clk 00:02:16]} {[%emt 00:00:46]} Bc4 {[%clk 00:05:32]} {[%emt 00:00:05]} 22.
O-O {[%clk 00:01:54]} {[%emt 00:00:27]} Bxe2 {[%clk 00:05:12]} {[%emt
00:00:25]} 23. Rfe1 {[%clk 00:01:57]} {[%emt 00:00:02]} Qe3+ {[%clk 00:05:16]}
{[%emt 00:00:01]} 24. Qxe3 {[%clk 00:01:34]} {[%emt 00:00:28]} Rxe3 {[%clk
00:05:18]} {[%emt 00:00:02]} 25. Kf2 {[%clk 00:01:38]} {[%emt 00:00:01]} Rde8
{[%clk 00:05:22]} {[%emt 00:00:02]} 26. c6 {[%clk 00:01:30]} {[%emt 00:00:13]}
b6 {[%clk 00:05:19]} {[%emt 00:00:07]} 27. Bd5 {[%clk 00:01:19]} {[%emt
00:00:16]} Bg4 {[%clk 00:05:09]} {[%emt 00:00:15]} 28. Bf7 {[%clk 00:01:06]}
{[%emt 00:00:19]} R8e4 {[%clk 00:05:04]} {[%emt 00:00:10]} 29. Rxe3 {[%clk
00:00:56]} {[%emt 00:00:15]} dxe3+ {[%clk 00:05:08]} {[%emt 00:00:01]} 30. Kg3
{[%clk 00:00:52]} {[%emt 00:00:10]} e2 {[%clk 00:05:12]} 31. Re1 {[%clk
00:00:55]} {[%emt 00:00:02]} Re3+ {[%clk 00:05:04]} {[%emt 00:00:13]} 32. Kf2
{[%clk 00:00:59]} Rh3 {[%clk 00:05:08]} {[%emt 00:00:01]} 33. Bc4 {[%clk
00:00:58]} {[%emt 00:00:06]} Rxh4 {[%clk 00:05:06]} {[%emt 00:00:06]} 34. Bxa6
{[%clk 00:00:58]} {[%emt 00:00:05]} Rh2+ {[%clk 00:04:40]} {[%emt 00:00:31]} 35.
Kg1 {[%clk 00:00:56]} {[%emt 00:00:07]} Rh3 {[%clk 00:04:42]} {[%emt 00:00:03]}
36. a4 {[%clk 00:00:53]} {[%emt 00:00:09]} Rc3 {[%clk 00:04:33]} {[%emt
00:00:13]} 37. Bd3 {[%clk 00:00:50]} {[%emt 00:00:08]} Rxc6 {[%clk 00:04:33]}
{[%emt 00:00:05]} 38. Kf2 {[%clk 00:00:50]} {[%emt 00:00:05]} Re6 {[%clk
00:04:30]} {[%emt 00:00:07]} 39. Bc4 {[%clk 00:00:48]} {[%emt 00:00:08]} Re4
{[%clk 00:04:33]} {[%emt 00:00:03]} 40. Bxe2 {[%clk 00:00:46]} {[%emt
00:00:07]} Rxf4+ {[%clk 00:04:34]} {[%emt 00:00:04]} 41. Kg3 {[%clk 00:00:46]}
{[%emt 00:00:04]} Re4 {[%clk 00:04:36]} {[%emt 00:00:02]} 42. Kf2 {[%clk
00:00:47]} {[%emt 00:00:05]} Bxe2 {[%clk 00:04:35]} {[%emt 00:00:06]} 43. Rxe2
{[%clk 00:00:43]} {[%emt 00:00:10]} Rxb4 {[%clk 00:04:39]} 44. Re5 {[%clk
00:00:36]} {[%emt 00:00:12]} g6 {[%clk 00:04:40]} {[%emt 00:00:03]} 45. a5
{[%clk 00:00:40]} {[%emt 00:00:02]} bxa5 {[%clk 00:04:44]} {[%emt 00:00:02]} 46.
Rxa5 {[%clk 00:00:43]} {[%emt 00:00:01]} Kb7 {[%clk 00:04:48]} 47. Re5 {[%clk
00:00:39]} {[%emt 00:00:09]} Rg4 {[%clk 00:04:52]} 48. Kf3 {[%clk 00:00:39]}
{[%emt 00:00:06]} Kc6 {[%clk 00:04:56]} 49. Ra5 {[%clk 00:00:41]} {[%emt
00:00:02]} Kd6 {[%clk 00:05:00]} 50. Rb5 {[%clk 00:00:32]} {[%emt 00:00:14]} c5
{[%clk 00:05:03]} {[%emt 00:00:01]} 51. Rb8 {[%clk 00:00:32]} {[%emt 00:00:06]}
Ke5 {[%clk 00:05:05]} {[%emt 00:00:03]} 52. Re8+ {[%clk 00:00:30]} {[%emt
00:00:07]} Kf6 {[%clk 00:05:09]} 53. Rc8 {[%clk 00:00:34]} c4 {[%clk 00:05:13]}
{[%emt 00:00:01]} 54. Rc6+ {[%clk 00:00:37]} {[%emt 00:00:03]} Kg5 {[%clk
00:05:16]} {[%emt 00:00:01]} 55. Rc5 {[%clk 00:00:37]} {[%emt 00:00:05]} h4
{[%clk 00:05:20]} 56. Rc8 {[%clk 00:00:38]} {[%emt 00:00:04]} c3 {[%clk
00:05:17]} {[%emt 00:00:09]} 57. Kf2 {[%clk 00:00:37]} {[%emt 00:00:05]} Rg3
{[%clk 00:05:19]} {[%emt 00:00:02]} 58. Rc4 {[%clk 00:00:39]} {[%emt 00:00:04]}
f4 {[%clk 00:05:23]} {[%emt 00:00:02]} 59. Rc6 {[%clk 00:00:37]} {[%emt
00:00:06]} h3 {[%clk 00:05:26]} 60. Rc8 {[%clk 00:00:39]} {[%emt 00:00:04]} Kg4
{[%clk 00:05:30]} {[%emt 00:00:01]} 61. Rh8 {[%clk 00:00:40]} {[%emt 00:00:04]}
g5 {[%clk 00:05:34]} {[%emt 00:00:01]} 62. Kf1 {[%clk 00:00:42]} {[%emt
00:00:03]} Rg2 {[%clk 00:05:37]} {[%emt 00:00:02]} 63. Ke1 {[%clk 00:00:38]}
{[%emt 00:00:09]} Rxc2 {[%clk 00:05:41]} {[%emt 00:00:02]} 64. Kf1 {[%clk
00:00:41]} Kg3 {[%clk 00:05:38]} {[%emt 00:00:08]} 65. Ke1 {[%clk 00:00:40]}
{[%emt 00:00:06]} f3 {[%clk 00:05:41]} {[%emt 00:00:02]} 66. Kd1 {[%clk
00:00:38]} {[%emt 00:00:07]} Rg2 {[%clk 00:05:44]} {[%emt 00:00:02]} 67. Ke1
{[%clk 00:00:30]} {[%emt 00:00:13]} Rg1# {[%clk 00:05:37]} {[%emt 00:00:05]}
0-1

[Event "Open NK Rapid 2025"]
[Site "Helmond, Netherlands"]
[Date "2025.05.03"]
[Round "2.20"]
[White "Kazarjan, Gachatur"]
[Black "Sosef, Noah"]
[Result "1-0"]
[TimeControl "15+5"]
[WhiteFideId "1068750"]
[BlackFideId "40107060"]
[WhiteElo "2155"]
[BlackElo "1835"]

1. e4 {[%clk 00:15:09]} c5 {[%clk 00:15:09]} {[%emt 00:00:02]} 2. a3 {[%clk
00:15:14]} {[%emt 00:00:01]} d6 {[%clk 00:15:03]} {[%emt 00:00:10]} 3. b4
{[%clk 00:15:13]} {[%emt 00:00:06]} cxb4 {[%clk 00:14:35]} {[%emt 00:00:33]} 4.
axb4 {[%clk 00:15:17]} {[%emt 00:00:01]} Nf6 {[%clk 00:14:38]} {[%emt
00:00:02]} 5. Nc3 {[%clk 00:15:21]} {[%emt 00:00:02]} Nc6 {[%clk 00:14:25]}
{[%emt 00:00:17]} 6. b5 {[%clk 00:15:25]} {[%emt 00:00:02]} Nd4 {[%clk
00:14:13]} {[%emt 00:00:16]} 7. Bb2 {[%clk 00:14:57]} {[%emt 00:00:33]} Bd7
{[%clk 00:13:54]} {[%emt 00:00:24]} 8. Nf3 {[%clk 00:14:33]} {[%emt 00:00:28]}
Nxf3+ {[%clk 00:13:50]} {[%emt 00:00:09]} 9. Qxf3 {[%clk 00:14:36]} {[%emt
00:00:02]} e5 {[%clk 00:11:02]} {[%emt 00:02:54]} 10. Bc4 {[%clk 00:14:31]}
{[%emt 00:00:10]} Be7 {[%clk 00:10:09]} {[%emt 00:00:58]} 11. O-O {[%clk
00:14:00]} {[%emt 00:00:35]} O-O {[%clk 00:10:09]} {[%emt 00:00:06]} 12. Rfe1
{[%clk 00:13:30]} {[%emt 00:00:35]} Be6 {[%clk 00:10:04]} {[%emt 00:00:10]} 13.
Be2 {[%clk 00:11:39]} {[%emt 00:01:56]} h6 {[%clk 00:09:29]} {[%emt 00:00:40]}
14. h3 {[%clk 00:11:35]} {[%emt 00:00:09]} Qc7 {[%clk 00:09:04]} {[%emt
00:00:31]} 15. Red1 {[%clk 00:11:25]} {[%emt 00:00:14]} Rfd8 {[%clk 00:07:47]}
{[%emt 00:01:22]} 16. d4 {[%clk 00:11:21]} {[%emt 00:00:09]} Nh7 {[%clk
00:03:54]} {[%emt 00:03:59]} 17. d5 {[%clk 00:10:00]} {[%emt 00:01:26]} Bd7
{[%clk 00:03:56]} {[%emt 00:00:02]} 18. Na4 {[%clk 00:09:59]} {[%emt 00:00:06]}
Rdc8 {[%clk 00:02:15]} {[%emt 00:01:46]} 19. c4 {[%clk 00:09:51]} {[%emt
00:00:14]} a6 {[%clk 00:01:44]} {[%emt 00:00:36]} 20. b6 {[%clk 00:09:01]}
{[%emt 00:00:54]} Qd8 {[%clk 00:01:39]} {[%emt 00:00:10]} 21. Qb3 {[%clk
00:08:59]} {[%emt 00:00:06]} Bxa4 {[%clk 00:01:16]} {[%emt 00:00:29]} 22. Qxa4
{[%clk 00:08:54]} {[%emt 00:00:10]} Nf6 {[%clk 00:01:15]} {[%emt 00:00:07]} 23.
Qc2 {[%clk 00:08:38]} {[%emt 00:00:20]} Nd7 {[%clk 00:01:00]} {[%emt 00:00:21]}
24. Bc3 {[%clk 00:08:36]} {[%emt 00:00:06]} Nc5 {[%clk 00:00:43]} {[%emt
00:00:22]} 25. Rdb1 {[%clk 00:08:31]} {[%emt 00:00:09]} Rcb8 {[%clk 00:00:36]}
{[%emt 00:00:13]} 26. Bd2 {[%clk 00:08:09]} {[%emt 00:00:28]} Bg5 {[%clk
00:00:34]} {[%emt 00:00:07]} 27. Bb4 {[%clk 00:08:12]} Be7 {[%clk 00:00:37]}
{[%emt 00:00:02]} 28. Bf3 {[%clk 00:08:10]} {[%emt 00:00:07]} Nd7 {[%clk
00:00:29]} {[%emt 00:00:14]} 29. Bc3 {[%clk 00:06:59]} {[%emt 00:01:15]} Nc5
{[%clk 00:00:29]} {[%emt 00:00:05]} 30. Ra5 {[%clk 00:06:59]} {[%emt 00:00:06]}
Nd7 {[%clk 00:00:27]} {[%emt 00:00:06]} 31. Ra3 {[%clk 00:06:55]} {[%emt
00:00:09]} Rc8 {[%clk 00:00:28]} {[%emt 00:00:05]} 32. Be2 {[%clk 00:06:56]}
{[%emt 00:00:03]} Nc5 {[%clk 00:00:30]} {[%emt 00:00:03]} 33. Bg4 {[%clk
00:06:54]} {[%emt 00:00:07]} Rcb8 {[%clk 00:00:27]} {[%emt 00:00:09]} 34. Qe2
{[%clk 00:06:46]} {[%emt 00:00:12]} g6 {[%clk 00:00:22]} {[%emt 00:00:10]} 35.
Bd2 {[%clk 00:06:22]} {[%emt 00:00:28]} Kg7 {[%clk 00:00:22]} {[%emt 00:00:04]}
36. h4 {[%clk 00:05:53]} {[%emt 00:00:36]} Bxh4 {[%clk 00:00:20]} {[%emt
00:00:07]} 37. Ra5 {[%clk 00:05:24]} {[%emt 00:00:35]} Bg5 {[%clk 00:00:20]}
{[%emt 00:00:05]} 38. Bc3 {[%clk 00:05:20]} {[%emt 00:00:09]} h5 {[%clk
00:00:18]} {[%emt 00:00:06]} 39. Bh3 {[%clk 00:05:21]} {[%emt 00:00:04]} Be7
{[%clk 00:00:21]} {[%emt 00:00:02]} 40. Rxc5 {[%clk 00:05:23]} {[%emt
00:00:03]} dxc5 {[%clk 00:00:23]} {[%emt 00:00:03]} 41. Bxe5+ {[%clk 00:05:27]}
{[%emt 00:00:01]} f6 {[%clk 00:00:24]} {[%emt 00:00:05]} 42. Bc7 {[%clk
00:05:26]} {[%emt 00:00:06]} Qe8 {[%clk 00:00:21]} {[%emt 00:00:06]} 43. Bxb8
{[%clk 00:05:29]} {[%emt 00:00:04]} Qxb8 {[%clk 00:00:24]} {[%emt 00:00:01]} 44.
g3 {[%clk 00:05:24]} {[%emt 00:00:10]} Bd6 {[%clk 00:00:27]} {[%emt 00:00:02]}
45. Be6 {[%clk 00:05:18]} {[%emt 00:00:10]} Qd8 {[%clk 00:00:20]} {[%emt
00:00:13]} 46. Kg2 {[%clk 00:05:12]} {[%emt 00:00:12]} Qe7 {[%clk 00:00:23]}
{[%emt 00:00:01]} 47. f4 {[%clk 00:05:11]} {[%emt 00:00:06]} Bb8 {[%clk
00:00:14]} {[%emt 00:00:15]} 48. e5 {[%clk 00:05:04]} {[%emt 00:00:11]} fxe5
{[%clk 00:00:17]} {[%emt 00:00:02]} 49. fxe5 {[%clk 00:05:08]} {[%emt
00:00:01]} Qg5 {[%clk 00:00:13]} {[%emt 00:00:10]} 50. d6 {[%clk 00:05:12]} Qd8
{[%clk 00:00:16]} {[%emt 00:00:01]} 51. Qf3 {[%clk 00:05:15]} {[%emt 00:00:02]}
Qf8 {[%clk 00:00:19]} {[%emt 00:00:02]} 52. Qxb7+ {[%clk 00:05:17]} {[%emt
00:00:04]} 1-0

[Event "Open NK Rapid 2025"]
[Site "Helmond, Netherlands"]
[Date "2025.05.03"]
[Round "2.21"]
[White "Adavatkar, Rugved"]
[Black "Labruyere, Roger"]
[Result "0-1"]
[TimeControl "15+5"]
[WhiteFideId "1055011"]
[BlackFideId "1059505"]
[WhiteElo "1833"]
[BlackElo "2117"]

1. d4 {[%clk 00:15:08]} {[%emt 00:00:02]} Nf6 {[%clk 00:15:09]} {[%emt
00:00:01]} 2. Bg5 {[%clk 00:15:11]} g6 {[%clk 00:15:13]} {[%emt 00:00:02]} 3.
Bxf6 {[%clk 00:15:12]} {[%emt 00:00:04]} exf6 {[%clk 00:15:16]} {[%emt
00:00:02]} 4. e4 {[%clk 00:15:16]} {[%emt 00:00:01]} Bg7 {[%clk 00:15:17]}
{[%emt 00:00:04]} 5. Nd2 {[%clk 00:15:19]} {[%emt 00:00:01]} O-O {[%clk
00:15:20]} {[%emt 00:00:02]} 6. Ngf3 {[%clk 00:15:23]} {[%emt 00:00:02]} d6
{[%clk 00:15:24]} {[%emt 00:00:01]} 7. Bd3 {[%clk 00:15:27]} {[%emt 00:00:01]}
c6 {[%clk 00:15:21]} {[%emt 00:00:09]} 8. c3 {[%clk 00:15:30]} {[%emt
00:00:01]} d5 {[%clk 00:15:25]} {[%emt 00:00:02]} 9. O-O {[%clk 00:15:30]}
{[%emt 00:00:04]} Be6 {[%clk 00:15:05]} {[%emt 00:00:24]} 10. Qc2 {[%clk
00:15:34]} {[%emt 00:00:02]} Nd7 {[%clk 00:15:08]} {[%emt 00:00:03]} 11. Rfe1
{[%clk 00:15:32]} {[%emt 00:00:06]} Rc8 {[%clk 00:15:11]} {[%emt 00:00:02]} 12.
Nf1 {[%clk 00:15:01]} {[%emt 00:00:36]} c5 {[%clk 00:15:13]} {[%emt 00:00:03]}
13. Qb1 {[%clk 00:15:04]} {[%emt 00:00:02]} Qb6 {[%clk 00:14:48]} {[%emt
00:00:30]} 14. h3 {[%clk 00:14:58]} {[%emt 00:00:11]} dxe4 {[%clk 00:14:51]}
{[%emt 00:00:02]} 15. Bxe4 {[%clk 00:15:01]} {[%emt 00:00:02]} f5 {[%clk
00:14:55]} {[%emt 00:00:01]} 16. d5 {[%clk 00:15:03]} {[%emt 00:00:04]} fxe4
{[%clk 00:14:54]} {[%emt 00:00:05]} 17. dxe6 {[%clk 00:15:06]} Qxe6 {[%emt
00:00:22]} 18. Qxe4 {[%clk 00:15:06]} Qb6 {[%clk 00:14:46]} {[%emt 00:00:02]}
19. Qc2 {[%clk 00:15:09]} {[%emt 00:00:01]} c4 {[%clk 00:14:44]} {[%emt
00:00:07]} 20. Ne3 {[%clk 00:15:06]} {[%emt 00:00:08]} Qc6 {[%clk 00:14:40]}
{[%emt 00:00:09]} 21. a4 {[%clk 00:14:59]} {[%emt 00:00:12]} Rfe8 {[%clk
00:14:24]} {[%emt 00:00:22]} 22. Rad1 {[%clk 00:14:18]} {[%emt 00:00:45]} a5
{[%clk 00:13:39]} {[%emt 00:00:50]} 23. Nd4 {[%clk 00:14:12]} {[%emt 00:00:11]}
Bxd4 {[%clk 00:13:40]} {[%emt 00:00:05]} 24. Rxd4 {[%clk 00:14:16]} Nb6 {[%clk
00:13:43]} {[%emt 00:00:02]} 25. Red1 {[%clk 00:14:12]} {[%emt 00:00:09]} Qxa4
{[%clk 00:13:22]} {[%emt 00:00:26]} 26. Qxa4 {[%clk 00:14:02]} {[%emt
00:00:15]} Nxa4 {[%clk 00:13:26]} {[%emt 00:00:01]} 27. Nxc4 {[%clk 00:13:58]}
{[%emt 00:00:09]} Rxc4 {[%clk 00:13:30]} {[%emt 00:00:01]} 28. Rxc4 {[%clk
00:13:57]} {[%emt 00:00:06]} Nxb2 {[%clk 00:13:33]} {[%emt 00:00:04]} 29. Rdd4
{[%clk 00:13:54]} {[%emt 00:00:06]} Nxc4 {[%clk 00:13:37]} {[%emt 00:00:02]} 30.
Rxc4 {[%clk 00:13:58]} Ra8 {[%clk 00:13:25]} {[%emt 00:00:18]} 31. Ra4 {[%clk
00:14:01]} {[%emt 00:00:02]} b5 {[%clk 00:13:29]} 32. Ra3 {[%clk 00:14:05]}
{[%emt 00:00:01]} a4 {[%clk 00:13:31]} {[%emt 00:00:03]} 33. Kf1 {[%clk
00:14:08]} {[%emt 00:00:01]} Kg7 {[%clk 00:13:31]} {[%emt 00:00:05]} 34. Ke2
{[%clk 00:14:12]} Kf6 {[%clk 00:13:35]} {[%emt 00:00:01]} 35. Kd3 {[%clk
00:14:16]} Ke5 {[%clk 00:13:40]} 36. f3 {[%clk 00:14:20]} Kd5 {[%clk 00:13:42]}
{[%emt 00:00:03]} 37. g3 {[%clk 00:14:23]} {[%emt 00:00:02]} Kc5 {[%clk
00:13:45]} {[%emt 00:00:02]} 38. Ra1 {[%clk 00:14:21]} {[%emt 00:00:06]} a3
{[%clk 00:13:49]} 39. Kc2 {[%clk 00:14:25]} {[%emt 00:00:01]} a2 {[%clk
00:13:50]} {[%emt 00:00:04]} 40. Kb3 {[%clk 00:14:29]} {[%emt 00:00:02]} Re8
{[%clk 00:13:19]} {[%emt 00:00:36]} 41. Rxa2 {[%clk 00:14:32]} {[%emt
00:00:02]} Re3 {[%clk 00:13:23]} 42. Rf2 {[%clk 00:14:36]} b4 {[%clk 00:13:27]}
{[%emt 00:00:01]} 43. Kb2 {[%clk 00:14:38]} {[%emt 00:00:03]} bxc3+ {[%clk
00:13:24]} {[%emt 00:00:08]} 44. Kc2 {[%clk 00:14:43]} Kc4 {[%clk 00:13:27]}
{[%emt 00:00:01]} 45. g4 {[%clk 00:14:43]} {[%emt 00:00:04]} Re7 {[%clk
00:13:19]} {[%emt 00:00:14]} 46. Rf1 {[%clk 00:14:47]} {[%emt 00:00:01]} Re2+
{[%clk 00:13:22]} {[%emt 00:00:02]} 47. Kc1 {[%clk 00:14:50]} Ra2 {[%clk
00:13:20]} {[%emt 00:00:07]} 48. Kb1 {[%clk 00:14:54]} {[%emt 00:00:02]} Kb3
{[%clk 00:13:25]} {[%emt 00:00:01]} 49. Rc1 {[%clk 00:14:57]} {[%emt 00:00:01]}
c2+ {[%clk 00:13:29]} 0-1

[Event "Open NK Rapid 2025"]
[Site "Helmond, Netherlands"]
[Date "2025.05.03"]
[Round "2.22"]
[White "Margaryan, Artur"]
[Black "Aalberts, Jos"]
[Result "1-0"]
[TimeControl "15+5"]
[WhiteFideId "13304348"]
[BlackFideId "1093541"]
[WhiteElo "2100"]
[BlackElo "1831"]

1. d4 {[%clk 00:15:07]} e6 {[%clk 00:15:08]} {[%emt 00:00:04]} 2. c4 {[%clk
00:14:58]} {[%emt 00:00:14]} d5 {[%clk 00:15:08]} {[%emt 00:00:05]} 3. Nc3
{[%clk 00:15:01]} {[%emt 00:00:02]} Nf6 {[%clk 00:15:11]} {[%emt 00:00:02]} 4.
cxd5 {[%clk 00:15:04]} {[%emt 00:00:03]} exd5 {[%clk 00:15:14]} {[%emt
00:00:01]} 5. Bg5 {[%clk 00:15:07]} {[%emt 00:00:02]} Be7 {[%clk 00:15:06]}
{[%emt 00:00:13]} 6. e3 {[%clk 00:15:10]} {[%emt 00:00:03]} O-O {[%clk
00:15:06]} {[%emt 00:00:03]} 7. Bd3 {[%clk 00:15:12]} {[%emt 00:00:04]} Nbd7
{[%clk 00:14:46]} {[%emt 00:00:26]} 8. Qc2 {[%clk 00:15:12]} {[%emt 00:00:04]}
c5 {[%clk 00:14:13]} {[%emt 00:00:38]} 9. Nf3 {[%clk 00:14:30]} {[%emt
00:00:47]} c4 {[%clk 00:13:49]} {[%emt 00:00:30]} 10. Bf5 {[%clk 00:14:33]}
{[%emt 00:00:02]} h6 {[%clk 00:12:58]} {[%emt 00:00:55]} 11. Bh4 {[%clk
00:14:27]} {[%emt 00:00:11]} g6 {[%clk 00:12:58]} {[%emt 00:00:05]} 12. Bxg6
{[%clk 00:11:29]} {[%emt 00:03:03]} fxg6 {[%clk 00:13:01]} {[%emt 00:00:02]} 13.
Qxg6+ {[%clk 00:11:32]} {[%emt 00:00:02]} Kh8 {[%clk 00:13:01]} {[%emt
00:00:05]} 14. Qxh6+ {[%clk 00:11:31]} {[%emt 00:00:06]} Nh7 {[%clk 00:13:05]}
{[%emt 00:00:01]} 15. Bxe7 {[%clk 00:11:05]} {[%emt 00:00:32]} Qxe7 {[%clk
00:12:25]} {[%emt 00:00:45]} 16. Nxd5 {[%clk 00:10:52]} {[%emt 00:00:19]} Qd8
{[%clk 00:10:01]} {[%emt 00:02:28]} 17. O-O {[%clk 00:09:09]} {[%emt 00:01:47]}
Ndf6 {[%clk 00:09:56]} {[%emt 00:00:10]} 18. Nf4 {[%clk 00:08:39]} {[%emt
00:00:35]} Rf7 {[%clk 00:08:52]} {[%emt 00:01:10]} 19. Ne5 {[%clk 00:08:37]}
{[%emt 00:00:06]} Rg7 {[%clk 00:08:48]} {[%emt 00:00:09]} 20. f3 {[%clk
00:06:42]} {[%emt 00:02:01]} Bd7 {[%clk 00:08:08]} {[%emt 00:00:45]} 21. Rac1
{[%clk 00:06:36]} {[%emt 00:00:11]} Rc8 {[%clk 00:08:09]} {[%emt 00:00:04]} 22.
Rf2 {[%clk 00:06:27]} {[%emt 00:00:14]} b5 {[%clk 00:08:06]} {[%emt 00:00:08]}
23. Rd2 {[%clk 00:05:54]} {[%emt 00:00:37]} Qb6 {[%clk 00:06:51]} {[%emt
00:01:19]} 24. Rdc2 {[%clk 00:04:42]} {[%emt 00:01:19]} Re8 {[%clk 00:06:31]}
{[%emt 00:00:25]} 25. Nxd7 {[%clk 00:04:14]} {[%emt 00:00:33]} Nxd7 {[%clk
00:06:34]} {[%emt 00:00:01]} 26. Qxb6 {[%clk 00:04:18]} {[%emt 00:00:02]} axb6
{[%clk 00:06:38]} {[%emt 00:00:01]} 27. e4 {[%clk 00:04:13]} {[%emt 00:00:09]}
Nhf6 {[%clk 00:06:29]} {[%emt 00:00:15]} 28. b3 {[%clk 00:04:10]} {[%emt
00:00:08]} Ne5 {[%clk 00:05:29]} {[%emt 00:01:01]} 29. dxe5 {[%clk 00:04:13]}
{[%emt 00:00:06]} Rxe5 {[%clk 00:05:33]} 30. bxc4 {[%clk 00:04:15]} {[%emt
00:00:03]} 1-0